bitfinex/quotes_SOLUSD_20251002
["timestamp","ask_amount","ask_price","bid_price","bid_amount"]
[1759422895063,1e-08,228.23,228.22,4.38173692]
[1759422895837,1e-08,228.23,228.22,25.18173692]
[1759422896254,1e-08,228.23,228.22,25.90173692]
[1759422896460,1e-08,228.23,228.22,25.18173692]
[1759422897861,0.2,228.26,228.22,36.85607922]
[1759422898070,0.2,228.26,228.23,21.52]
[1759422898371,0.2,228.26,228.23,52.7]
[1759422898567,0.2,228.26,228.23,51.98]
[1759422898868,0.2,228.26,228.24,4.38135296]
[1759422899268,0.2,228.26,228.25,20.8]
[1759422900460,0.2,228.26,228.25,21.52]
[1759422900865,0.2,228.26,228.25,25.901161]
[1759422901060,0.2,228.26,228.25,25.181161]
[1759422901973,1e-08,228.26,228.25,57.051161]
[1759422904947,1e-08,228.26,228.25,25.181161]
[1759422905147,1e-08,228.26,228.25,56.341161]
[1759422905547,1e-08,228.26,228.25,25.181161]
[1759422905752,1e-08,228.26,228.25,4.381161]
[1759422906060,1e-08,228.26,228.25,25.181161]
[1759422906473,0.70000001,228.26,228.25,4.381161]
[1759422907059,0.70000001,228.26,228.24,4.38135296]
[1759422907260,1e-08,228.26,228.24,4.38135296]
[1759422907578,1e-08,228.26,228.25,0.71]
[1759422909465,0.2,228.33,228.28,20.8]
[1759422909670,0.2,228.33,228.32,20.8]
[1759422909972,0.2,228.33,228.28,20.8]
[1759422910180,0.2,228.33,228.32,20.8]
[1759422910480,0.2,228.33,228.31,31.18]
[1759422910883,0.2,228.33,228.28,20.8]
[1759422911067,0.2,228.33,228.32,20.8]
[1759422911461,0.2,228.33,228.32,25.17981779]
[1759422911655,0.9,228.33,228.32,25.17981779]
[1759422912182,0.2,228.33,228.32,25.17981779]
[1759422914588,0.2,228.33,228.32,135.43981779]
[1759422915265,0.2,228.33,228.32,56.33981779]
[1759422916061,1e-08,228.33,228.32,57.04981779]
[1759422917766,1e-08,228.33,228.32,189.84981779]
[1759422918179,1e-08,228.33,228.32,202.99531655]
[1759422918387,1e-08,228.33,228.32,171.83531655]
[1759422918560,1e-08,228.33,228.32,171.12531655]
[1759422918760,1e-08,228.33,228.32,202.28531655]
[1759422919002,1e-08,228.33,228.32,189.13981779]
[1759422922297,1e-08,228.33,228.32,189.84981779]
[1759422922475,1e-08,228.33,228.32,157.97981779]
[1759422922682,1e-08,228.33,228.32,189.13981779]
[1759422922980,1e-08,228.33,228.32,189.84981779]
[1759422923397,1e-08,228.33,228.32,268.94981779]
[1759422923899,1e-08,228.33,228.32,57.06981779]
[1759422925376,1e-08,228.33,228.32,57.04981779]
[1759422926178,1e-08,228.33,228.32,70.19531655]
[1759422929169,1e-08,228.33,228.32,38.32531655]
[1759422929372,0.65000001,228.33,228.32,35.51981779]
[1759422929599,0.65000001,228.33,228.32,4.37981779]
[1759422929795,1e-08,228.33,228.32,35.51981779]
[1759422930310,0.65000001,228.33,228.32,35.51981779]
[1759422930604,0.65000001,228.33,228.32,4.37981779]
[1759422931675,0.65000001,228.33,228.3,15.33056565]
[1759422932004,10.87647521,228.31,228.3,4.38020148]
[1759422932205,11.53647521,228.31,228.3,4.38020148]
[1759422932405,11.53647521,228.31,228.3,25.18020148]
[1759422932906,11.53647521,228.31,228.3,4.38020148]
[1759422933203,11.53647521,228.31,228.25,53.04580503]
[1759422933204,11.53647521,228.31,228.26,15.33339174]
[1759422933383,10.87647521,228.29,228.26,15.33339174]
[1759422933703,10.87647521,228.27,228.21,4.38192892]
[1759422933876,0.66,228.26,228.21,15.33675123]
[1759422934202,0.66,228.25,228.24,20.8]
[1759422935896,0.66,228.25,228.24,25.18135296]
[1759422936206,0.66,228.25,228.22,4.38158082]
[1759422936376,10.87647521,228.23,228.19,4.38231298]
[1759422936577,10.87647521,228.23,228.14,3.56256834]
[1759422936578,10.87647521,228.21,228.14,7.94575933]
[1759422936775,0.66,228.2,228.14,15.34137456]
[1759422936994,31.16,228.24,228.14,15.34137456]
[1759422936995,0.66,228.19,228.14,15.34137456]
[1759422937305,6.81897928,228.28,228.17,20.8]
[1759422937472,0.66,228.21,228.14,41.42025682]
[1759422937679,0.66,228.21,228.15,31.16]
[1759422937981,0.66,228.21,228.16,15.3401122]
[1759422938184,0.66,228.2,228.19,20.8]
[1759422939911,0.66,228.2,228.19,25.18231298]
[1759422941004,11.199295,228.3,228.19,25.18231298]
[1759422941005,0.66,228.24,228.19,15.33809544]
[1759422941221,0.66,228.23,228.19,15.33809544]
[1759422941595,0.66,228.22,228.19,15.33809544]
[1759422942315,0.66,228.24,228.21,20.8]
[1759422942490,0.66,228.23,228.21,20.8]
[1759422943108,0.66,228.23,228.19,15.33809544]
[1759422943310,0.66,228.23,228.21,20.8]
[1759422943809,0.66,228.22,228.21,20.8]
[1759422944206,0.66,228.22,228.21,25.18192892]
[1759422946901,0.66,228.22,228.2,4.38210785]
[1759422947100,10.87647521,228.25,228.16,10.95694273]
[1759422947101,0.66,228.21,228.16,10.95694273]
[1759422947313,0.66,228.21,228.13,10.95847055]
[1759422947618,10.87647521,228.19,228.13,10.95847055]
[1759422947805,0.66,228.18,228.13,3.55215345]
[1759422947997,0.66,228.17,228.12,4.38365772]
[1759422948192,0.66,228.16,228.13,20.8]
[1759422948388,0.66,228.16,228.14,4.38327342]
[1759422948904,0.66,228.15,228.14,4.38327342]
[1759422949100,0.66,228.15,228.14,25.18327342]
[1759422949814,0.66,228.18,228.14,36.14145699]
[1759422950014,0.66,228.17,228.14,15.34145699]
[1759422950188,0.66,228.16,228.14,20.8]
[1759422950392,0.66,228.16,228.14,25.18321004]
[1759422951412,10.87647521,228.17,228.14,36.14139361]
[1759422951608,11.53647521,228.17,228.14,36.14139361]
[1759422951801,0.66,228.16,228.14,36.14139361]
[1759422953429,10.87647521,228.17,228.14,36.14139361]
[1759422953722,0.66,228.18,228.14,36.14139361]
[1759422953924,0.66,228.17,228.14,36.14139361]
[1759422954123,0.66,228.16,228.14,36.14139361]
[1759422956534,0.66,228.18,228.14,36.14139361]
[1759422956700,0.66,228.17,228.14,36.14139361]
[1759422957196,10.87647521,228.21,228.14,36.14139361]
[1759422957404,0.66,228.16,228.14,36.14139361]
[1759422957597,0.66,228.18,228.14,36.14139361]
[1759422958012,10.87647521,228.19,228.15,0.72]
[1759422958429,0.66,228.21,228.15,0.72]
[1759422958726,0.66,228.21,228.19,20.8]
[1759422959104,0.66,228.2,228.19,20.8]
[1759422959640,10.87647521,228.24,228.19,20.8]
[1759422959848,10.87647521,228.21,228.19,20.8]
[1759422960015,10.87647521,228.24,228.19,20.8]
[1759422960208,0.3,229.05,228.19,20.8]
[1759422960209,1e-08,228.33,228.2,0.72]
[1759422960408,10.87647521,228.26,228.2,21.52]
[1759422960612,10.87647521,228.26,228.24,20.8]
[1759422960839,31.18,228.32,228.17,31.18]
[1759422960840,10.87647521,228.24,228.19,4.38214309]
[1759422961211,10.87647521,228.22,228.18,4.38248326]
[1759422961412,0.68,228.21,228.14,20.8]
[1759422961629,31.18,228.25,228.14,20.8]
[1759422961630,10.87647521,228.19,228.14,20.8]
[1759422961921,0.68,228.18,228.13,20.8]
[1759422962239,10.87647521,228.2,228.13,20.8]
[1759422962442,10.87647521,228.2,228.14,20.8]
[1759422962443,10.87647521,228.16,228.14,20.8]
[1759422962640,10.87647521,228.16,228.06,21.9234189]
[1759422962641,10.87647521,228.14,228.08,15.3454928]
[1759422962936,11.55647521,228.14,228.11,20.8]
[1759422963105,10.87647521,228.17,228.11,20.8]
[1759422963309,0.68,228.16,228.08,15.3454928]
[1759422963524,10.87647521,228.14,228.08,15.3454928]
[1759422963727,0.68,228.13,228.08,15.3454928]
[1759422964536,0.68,228.13,228.11,20.8]
[1759422964839,0.68,228.12,228.05,3.54746267]
[1759422965131,0.68,228.12,228.05,20.8]
[1759422965717,12.70639942,228.16,228.08,20.8]
[1759422965917,10.87647521,228.1,228.08,20.8]
[1759422966116,11.55647521,228.1,228.08,20.8]
[1759422966512,10.87647521,228.11,228.08,20.8]
[1759422966714,0.68,228.1,228.09,4.38423429]
[1759422966910,10.87647521,228.09,228.07,4.38450324]
[1759422967140,11.55647521,228.08,228.07,4.38450324]
[1759422967310,10.87647521,228.08,228.07,4.38450324]
[1759422967510,11.55647521,228.08,228.07,4.38450324]
[1759422967757,10.87647521,228.07,228.03,21.5]
[1759422967929,0.68,228.07,228.03,20.8]
[1759422968236,0.68,228.07,228.05,20.8]
[1759422968613,11.55647521,228.06,228.05,20.8]
[1759422968807,11.55647521,228.06,228.05,25.18500328]
[1759422969071,11.55647521,228.06,228.05,20.8]
[1759422969241,11.55647521,228.06,228.02,4.58545207]
[1759422969242,10.87647521,228.05,228.02,4.58545207]
[1759422969424,10.87647521,228.03,228.02,4.58545207]
[1759422969626,0.68,228.03,228.02,4.58558021]
[1759422970242,11.55647521,228.03,228.02,25.38558021]
[1759422970625,11.55647521,228.03,228.02,21.0]
[1759422971518,11.55647521,228.03,228.02,0.2]
[1759422973929,10.87647521,228.03,228.02,0.2]
[1759422974529,11.55647521,228.03,228.02,0.2]
[1759422974948,10.87647521,228.03,228.02,4.58558021]
[1759422975263,42.05647521,228.03,228.02,4.58558021]
[1759422975572,42.73647521,228.03,228.02,0.2]
[1759422977340,42.73647521,228.03,228.02,4.58558021]
[1759422977341,10.87647521,228.03,228.02,4.58558021]
[1759422977547,10.87647521,228.03,228.02,5.28558021]
[1759422977733,31.18,228.05,228.04,20.8]
[1759422977938,10.87647521,228.1,228.04,0.7]
[1759422978137,10.87647521,228.08,228.02,37.04953074]
[1759422978547,10.87647521,228.08,228.02,25.38558021]
[1759422978743,11.55647521,228.08,228.02,25.38558021]
[1759422979267,0.68,228.07,228.02,25.38558021]
[1759422979467,10.87647521,228.05,228.02,0.2]
[1759422979633,10.87647521,228.03,228.02,0.2]
[1759422979834,11.55647521,228.03,228.02,0.2]
[1759422980854,0.68,228.07,228.02,0.2]
[1759422981059,10.87647521,228.03,228.02,0.2]
[1759422981434,10.87647521,228.03,228.02,4.58558021]
[1759422985939,10.87647521,228.03,228.02,25.38558021]
[1759422986141,0.68,228.1,228.02,16.26953074]
[1759422986457,42.75647521,228.09,228.02,16.26953074]
[1759422987367,42.07647521,228.09,228.05,20.8]
[1759422987660,10.95770326,228.15,228.05,20.8]
[1759422987661,0.68,228.11,228.05,20.8]
[1759422987966,42.75647521,228.1,228.05,20.8]
[1759422988166,0.68,228.09,228.05,20.8]
[1759422988372,10.87647521,228.07,228.05,20.8]
[1759422988769,10.87647521,228.09,228.06,25.18481101]
[1759422989086,10.87647521,228.07,228.06,20.8]
[1759422989362,11.55647521,228.07,228.05,20.8]
[1759422990136,42.05647521,228.06,228.05,20.8]
[1759422990954,42.73647521,228.06,228.05,20.8]
[1759422991259,42.05647521,228.06,228.05,20.8]
[1759422991644,42.05647521,228.06,228.05,25.18500328]
[1759422993757,10.87647521,228.05,228.02,21.0]
[1759422994670,10.87647521,228.05,228.03,4.38534457]
[1759422994882,10.87647521,228.05,228.04,25.18519557]
[1759422996705,10.87647521,228.1,228.04,5.10519557]
[1759422996996,10.87647521,228.08,228.04,5.10519557]
[1759422997199,31.18,228.07,228.04,4.38519557]
[1759422997368,10.87647521,228.06,228.04,25.18519557]
[1759422998189,0.69,228.05,228.02,4.58550301]
[1759422998484,10.87647521,228.03,228.02,0.2]
[1759422998683,10.87647521,228.03,228.02,21.0]
[1759422998684,42.74647521,228.03,228.02,21.0]
[1759422998894,42.74647521,228.03,228.02,0.2]
[1759422999479,47.13186309,228.03,228.02,0.2]
[1759422999876,48.9617873,228.03,228.02,0.2]
[1759423005683,10.87647521,228.04,228.02,0.2]
[1759423005880,5.07501985,228.05,228.02,0.2]
[1759423005881,44.57639942,228.03,228.02,0.2]
[1759423006208,10.87647521,228.02,227.96,21.0]
[1759423006372,10.87647521,228.0,227.96,21.0]
[1759423006569,10.87647521,227.98,227.96,0.2]
[1759423006770,42.05647521,227.97,227.96,0.2]
[1759423006971,42.74647521,227.97,227.96,0.2]
[1759423007573,42.05647521,227.97,227.96,0.2]
[1759423009376,10.87647521,227.97,227.96,0.2]
[1759423009581,42.05647521,227.97,227.96,0.2]
[1759423010976,42.05647521,227.97,227.96,4.58673451]
[1759423011300,42.05647521,227.97,227.96,5.30673451]
[1759423011680,42.05647521,227.97,227.96,25.38673451]
[1759423011878,42.05647521,227.97,227.96,26.10673451]
[1759423012971,31.18,227.97,227.96,26.10673451]
[1759423013172,0.69,228.05,227.96,37.07357079]
[1759423013377,42.05647521,228.04,227.99,20.8]
[1759423013611,42.05647521,228.04,228.0,0.72]
[1759423013817,42.74647521,228.04,227.99,20.8]
[1759423014014,42.74647521,228.04,227.99,0.72]
[1759423014311,42.05647521,228.04,228.0,0.72]
[1759423014520,42.05647521,228.04,228.01,0.72]
[1759423014814,31.18,228.03,227.99,20.8]
[1759423015022,31.18,228.03,228.0,0.72]
[1759423015174,31.18,228.03,227.99,20.8]
[1759423015380,31.18,228.03,228.02,20.8]
[1759423016009,31.18,228.03,228.02,21.52]
[1759423017088,1.82992421,228.11,228.02,21.52]
[1759423017089,31.75737156,228.16,228.03,20.8]
[1759423017298,10.87647521,228.09,228.04,4.38519557]
[1759423017603,10.87647521,228.07,228.04,4.38519557]
[1759423017800,31.18,228.06,228.04,5.10519557]
[1759423017986,10.87647521,228.05,228.02,4.38558021]
[1759423018196,31.18,228.04,228.02,4.38558021]
[1759423019288,31.18,228.04,228.01,4.38577255]
[1759423019493,31.18,228.04,228.03,20.8]
[1759423019494,42.05647521,228.04,228.03,20.8]
[1759423019913,42.05647521,228.04,228.03,21.52]
[1759423020478,42.05647521,228.04,228.03,20.8]
[1759423021709,42.05647521,228.04,228.02,4.38548602]
[1759423021908,10.87647521,228.03,228.02,4.38548602]
[1759423022405,11.57647521,228.03,227.96,0.2]
[1759423022614,10.87647521,228.01,227.96,0.2]
[1759423022786,10.87647521,227.99,227.96,0.2]
[1759423022993,31.18,227.98,227.96,0.2]
[1759423023193,31.88,227.98,227.96,0.2]
[1759423023402,0.7,227.97,227.96,0.2]
[1759423024126,11.57647521,227.97,227.96,0.2]
[1759423024818,42.05647521,227.97,227.96,4.58673451]
[1759423025310,31.18,227.97,227.96,5.28673451]
[1759423025998,31.18,227.97,227.96,25.38673451]
[1759423026203,31.18,227.97,227.96,26.08673451]
[1759423026688,31.18,227.97,227.96,25.38673451]
[1759423027918,31.18,227.97,227.96,26.08673451]
[1759423028114,10.87647521,228.03,227.96,26.08673451]
[1759423028299,31.18,228.02,227.96,26.08673451]
[1759423028817,10.87647521,228.04,227.96,26.08673451]
[1759423029009,0.7,228.02,227.96,26.08673451]
[1759423030086,31.18,228.03,227.96,37.05357079]
[1759423030314,10.87647521,228.04,227.97,0.7]
[1759423030505,10.87647521,228.02,227.96,36.35357079]
[1759423030708,31.88,228.03,227.96,4.58673451]
[1759423030709,10.87647521,228.0,227.96,4.58673451]
[1759423030921,10.87647521,227.98,227.96,4.58673451]
[1759423031219,10.87647521,227.98,227.97,20.8]
[1759423031805,10.87647521,227.98,227.97,25.18654208]
[1759423032201,10.87647521,227.98,227.97,20.8]
[1759423032412,11.57647521,227.98,227.97,20.8]
[1759423032593,11.57647521,227.98,227.96,0.2]
[1759423032796,11.57647521,227.97,227.96,0.2]
[1759423034131,10.87647521,227.97,227.96,0.2]
[1759423034417,42.75647521,227.97,227.96,0.2]
[1759423036006,42.05647521,227.97,227.96,4.58673451]
[1759423037495,42.05647521,227.97,227.96,0.2]
[1759423037836,42.75647521,227.97,227.96,0.2]
[1759423039999,47.14301729,227.97,227.96,0.2]
[1759423041729,42.75647521,227.97,227.96,0.2]
[1759423041930,50.00570992,227.97,227.96,0.2]
[1759423042624,10.87647521,227.96,227.91,0.2]
[1759423042801,10.87647521,227.94,227.91,0.2]
[1759423043002,10.87647521,227.92,227.91,0.2]
[1759423043525,42.05647521,227.92,227.91,4.58769689]
[1759423043726,42.73647521,227.92,227.91,0.2]
[1759423043929,45.59916784,227.92,227.91,0.2]
[1759423044327,10.87647521,227.91,227.85,0.2]
[1759423044503,13.73916784,227.89,227.85,0.2]
[1759423044703,13.73916784,227.87,227.85,0.2]
[1759423044937,44.91916784,227.86,227.85,0.2]
[1759423045111,49.98782754,227.86,227.85,0.2]
[1759423045821,42.73647521,227.86,227.85,0.2]
[1759423047325,49.98782754,227.86,227.85,0.2]
[1759423047521,47.12513491,227.86,227.85,0.2]
[1759423047724,15.94513491,227.86,227.85,0.2]
[1759423048037,47.12513491,227.86,227.85,0.2]
[1759423048412,49.98782754,227.86,227.85,0.2]
[1759423048609,10.87647521,227.85,227.79,0.2]
[1759423048929,50.08300158,227.86,227.79,0.2]
[1759423048930,10.87647521,227.83,227.79,0.2]
[1759423049147,10.87647521,227.81,227.79,21.0]
[1759423049337,42.05647521,227.8,227.79,21.67]
[1759423049715,42.05647521,227.8,227.79,21.0]
[1759423049919,42.05647521,227.8,227.79,25.39000834]
[1759423051225,42.05647521,227.8,227.79,0.2]
[1759423052110,42.76647521,227.8,227.79,0.2]
[1759423052735,50.01898346,227.8,227.79,0.2]
[1759423054229,10.87647521,227.79,227.78,0.1]
[1759423054413,13.73916784,227.79,227.78,0.1]
[1759423054625,14.44916784,227.79,227.78,0.1]
[1759423055322,50.01917618,227.79,227.78,0.1]
[1759423057153,47.15648355,227.79,227.78,0.1]
[1759423057350,50.01917618,227.79,227.78,0.1]
[1759423057921,50.01917618,227.79,227.73,0.2]
[1759423057922,60.99419703,227.79,227.73,0.2]
[1759423058260,13.73916784,227.74,227.73,0.2]
[1759423058456,44.91916784,227.74,227.73,0.2]
[1759423058754,42.76647521,227.74,227.73,0.2]
[1759423058925,45.62916784,227.74,227.73,0.2]
[1759423059824,42.05647521,227.74,227.73,0.2]
[1759423060143,50.02014,227.74,227.73,0.2]
[1759423061243,47.15744737,227.74,227.73,0.2]
[1759423061433,50.02014,227.74,227.73,0.2]
[1759423061627,10.87647521,227.73,227.68,0.2]
[1759423061935,15.26811757,227.71,227.68,0.2]
[1759423062134,10.87647521,227.69,227.68,0.2]
[1759423062518,11.58647521,227.69,227.68,0.2]
[1759423063616,14.44916784,227.69,227.67,0.1]
[1759423063818,49.33129714,227.68,227.67,0.1]
[1759423064246,50.04129714,227.68,227.67,0.1]
[1759423064543,24.03647521,227.64,227.5,4.39560439]
[1759423064756,10.87647521,227.62,227.5,18.92985313]
[1759423064934,10.87647521,227.6,227.5,18.92985313]
[1759423065124,10.87647521,227.58,227.53,20.8]
[1759423065321,10.87647521,227.56,227.53,20.8]
[1759423065622,10.87647521,227.54,227.3,20.0]
[1759423065826,33.96,227.61,227.32,15.39679746]
[1759423065827,10.87647521,227.49,227.32,15.39679746]
[1759423066023,10.87647521,227.47,227.35,20.8]
[1759423066221,10.87647521,227.47,227.32,32.16863633]
[1759423066222,10.87647521,227.52,227.32,32.16863633]
[1759423066432,10.87647521,227.5,227.36,20.8]
[1759423066666,10.87647521,227.48,227.37,0.27]
[1759423067562,10.87647521,227.53,227.37,0.27]
[1759423067760,10.87647521,227.51,227.4,20.8]
[1759423067918,10.87647521,227.51,227.45,20.8]
[1759423068232,10.87647521,227.51,227.46,0.27]
[1759423068435,10.87647521,227.51,227.47,0.27]
[1759423068748,10.87647521,227.51,227.48,0.27]
[1759423068951,10.87647521,227.49,227.48,0.27]
[1759423069441,5.10391706,227.59,227.48,0.27]
[1759423069642,10.87647521,227.57,227.48,0.27]
[1759423070147,10.87647521,227.57,227.49,4.39579761]
[1759423070358,10.87647521,227.57,227.49,4.66579761]
[1759423070651,10.87647521,227.57,227.49,0.27]
[1759423071256,10.87647521,227.55,227.51,20.8]
[1759423071429,10.87647521,227.53,227.51,20.8]
[1759423071630,10.87647521,227.53,227.52,0.27]
[1759423071934,10.87647521,227.53,227.51,20.8]
[1759423072130,10.87647521,227.53,227.52,4.395218]
[1759423072454,42.09647521,227.53,227.52,25.195218]
[1759423072653,42.09647521,227.53,227.52,25.465218]
[1759423072856,10.87647521,227.63,227.52,15.653263]
[1759423073030,10.87647521,227.63,227.53,0.27]
[1759423073362,10.87647521,227.61,227.53,0.27]
[1759423073656,30.72,227.62,227.55,20.8]
[1759423073657,31.22,227.62,227.55,20.8]
[1759423073854,31.22,227.62,227.56,0.27]
[1759423074055,10.87647521,227.61,227.56,0.27]
[1759423074257,10.87647521,227.61,227.6,20.8]
[1759423074950,10.87647521,227.61,227.57,29.02177875]
[1759423075154,10.87647521,227.61,227.58,0.27]
[1759423076159,10.87647521,227.61,227.57,39.73740954]
[1759423076160,0.71,227.7,227.59,0.27]
[1759423076362,10.87647521,227.69,227.6,15.37785588]
[1759423076539,0.71,227.73,227.61,0.27]
[1759423076738,28.88,227.72,227.63,20.8]
[1759423076956,28.88,227.72,227.63,21.07]
[1759423077170,10.87647521,227.71,227.64,0.27]
[1759423077668,31.22,227.73,227.64,0.27]
[1759423078248,2.86269263,227.81,227.64,0.27]
[1759423078249,0.71,227.79,227.68,20.8]
[1759423078455,19.08,227.78,227.69,0.27]
[1759423078673,2.86269263,227.85,227.69,0.27]
[1759423078963,0.71,227.82,227.69,0.27]
[1759423079181,10.87647521,227.81,227.73,20.8]
[1759423079470,0.71,227.81,227.73,20.8]
[1759423079672,10.87647521,227.79,227.68,21.07]
[1759423079857,10.87647521,227.77,227.68,21.07]
[1759423080056,10.87647521,227.77,227.72,20.8]
[1759423080270,10.87647521,227.77,227.73,25.19116497]
[1759423080448,10.87647521,227.75,227.74,20.8]
[1759423080857,11.58647521,227.75,227.71,4.39138363]
[1759423081652,0.66,227.74,227.7,20.8]
[1759423081847,10.87647521,227.78,227.7,4.39173004]
[1759423082050,10.87647521,227.78,227.71,0.27]
[1759423082275,11.53647521,227.78,227.7,4.39173004]
[1759423082576,0.66,227.77,227.7,4.39173004]
[1759423082750,6.8512417,227.73,227.65,13.18536424]
[1759423083072,10.87647521,227.71,227.63,20.8]
[1759423083274,10.87647521,227.69,227.63,20.8]
[1759423083868,10.87647521,227.69,227.64,0.27]
[1759423083869,31.32,227.69,227.64,0.27]
[1759423084045,11.53647521,227.72,227.63,20.8]
[1759423084046,10.87647521,227.71,227.65,0.27]
[1759423084247,10.87647521,227.69,227.6,15.37785588]
[1759423084447,0.66,227.68,227.6,25.19367311]
[1759423084880,10.87647521,227.66,227.6,4.39367311]
[1759423085185,10.87647521,227.66,227.58,4.39387607]
[1759423085186,10.87647521,227.64,227.58,4.39387607]
[1759423085352,10.87647521,227.62,227.58,4.39387607]
[1759423085560,0.66,227.61,227.58,4.39387607]
[1759423085894,0.66,227.64,227.58,4.39387607]
[1759423086396,10.87647521,227.65,227.58,20.8]
[1759423086579,10.87647521,227.62,227.54,4.39472838]
[1759423086765,10.87647521,227.6,227.54,4.39472838]
[1759423086965,10.87647521,227.58,227.54,4.39472838]
[1759423087162,10.87647521,227.56,227.5,10.98856683]
[1759423087469,10.87647521,227.56,227.51,15.38393916]
[1759423087662,0.66,227.6,227.54,20.8]
[1759423087988,10.87647521,227.6,227.54,20.8]
[1759423088365,10.87647521,227.61,227.58,20.8]
[1759423088680,11.53647521,227.61,227.58,20.8]
[1759423088896,10.87647521,227.61,227.58,20.8]
[1759423089098,0.66,227.6,227.58,20.8]
[1759423089478,10.87647521,227.58,227.55,4.39463854]
[1759423089683,11.53647521,227.58,227.55,4.39463854]
[1759423091107,10.87647521,227.56,227.52,4.395218]
[1759423091280,0.66,227.56,227.52,4.395218]
[1759423091609,10.87647521,227.54,227.51,20.8]
[1759423091770,0.66,227.53,227.43,0.27]
[1759423091963,10.87647521,227.52,227.48,20.8]
[1759423092165,11.53647521,227.52,227.44,10.99158602]
[1759423092373,11.53647521,227.52,227.44,15.38835]
[1759423092667,11.53647521,227.52,227.44,32.14854907]
[1759423092863,0.66,227.56,227.47,20.8]
[1759423093067,0.66,227.56,227.47,21.07]
[1759423093068,10.87647521,227.54,227.47,21.07]
[1759423094477,10.87647521,227.54,227.48,15.38596799]
[1759423094775,10.87647521,227.58,227.51,20.8]
[1759423094989,10.87647521,227.6,227.52,0.27]
[1759423095201,42.27647521,227.6,227.51,20.8]
[1759423095499,10.87647521,227.58,227.48,15.38596799]
[1759423095668,10.87647521,227.56,227.48,15.38596799]
[1759423095870,10.87647521,227.54,227.48,15.38596799]
[1759423096376,11.53647521,227.53,227.48,4.39599085]
[1759423096577,10.87647521,227.53,227.47,20.8]
[1759423096889,10.87647521,227.51,227.43,4.39683068]
[1759423097212,0.66,227.51,227.43,15.38922394]
[1759423097500,10.87647521,227.49,227.45,20.8]
[1759423097663,10.87647521,227.49,227.43,4.39683068]
[1759423097664,11.53647521,227.49,227.43,4.39683068]
[1759423097863,11.53647521,227.49,227.43,15.38922394]
[1759423098097,11.53647521,227.49,227.46,20.8]
[1759423098593,11.53647521,227.49,227.47,4.39618411]
[1759423098908,11.53647521,227.48,227.47,4.39618411]
[1759423099209,10.87647521,227.47,227.46,20.8]
[1759423099367,10.87647521,227.48,227.46,25.19633576]
[1759423099567,10.87647521,227.52,227.46,25.19633576]
[1759423099767,0.66,227.51,227.46,4.39633576]
[1759423099989,10.87647521,227.49,227.46,4.39633576]
[1759423100192,0.66,227.49,227.46,4.39633576]
[1759423100393,10.87647521,227.47,227.46,4.39633576]
[1759423100777,10.87647521,227.47,227.45,15.38778659]
[1759423100976,10.87647521,227.49,227.48,20.8]
[1759423101182,11.53647521,227.49,227.48,20.8]
[1759423102001,10.87647521,227.51,227.48,20.8]
[1759423102492,11.53647521,227.51,227.48,20.8]
[1759423102813,42.31647521,227.53,227.49,4.39579761]
[1759423103113,10.87647521,227.51,227.49,4.39579761]
[1759423103408,10.87647521,227.54,227.49,15.38529165]
[1759423103702,10.87647521,227.52,227.49,25.19579761]
[1759423103902,10.87647521,227.5,227.49,20.8]
[1759423104107,0.71,227.5,227.45,4.39654161]
[1759423104293,15.29465307,227.53,227.45,4.39654161]
[1759423104294,10.87647521,227.48,227.46,20.8]
[1759423104602,11.58647521,227.47,227.46,20.8]
[1759423104908,10.87647521,227.46,227.43,4.3969573]
[1759423105377,10.87647521,227.46,227.45,20.8]
[1759423105576,0.71,227.46,227.45,20.8]